Cogmind - Beta 16.1 *** ADVENTURER MODE // 2026.02.24 @ 00:32:36 Player: liability Result: Destroyed by S-27 Virus with Autogun Performance ------------- Evolutions (6) 3000 Regions Visited (17) 3400 Robots Destroyed (273) 1365 Value Destroyed (9650) 9650 Prototype IDs (46) 920 Alien Tech Used (1) 200 Bonus (1351) 1351 TOTAL SCORE: 19886 Bonus ------- Follower Combat Kills 751 Aligned with FarCom 300 Met Data Miner 300 Cogmind --------- Core Integrity 0/1150 Matter 300/300 Energy 100/100 System Corruption 10% Temperature Cool (0) Movement Core (50) Location -4/Upper Caves Parts ------- > --- POWER (2) -------- (None) > --- PROPULSION (4) --- (None) > --- UTILITY (9) ------ (None) > --- WEAPON (4) ------- Plasma Lance > --- INVENTORY (5) ---- Wheel Wheel Variable Charge Gun Improved Remote Datajack Peak State ------------ > --- POWER ------------ Deuterium Engine Light Angular Momentum Engine > --- PROPULSION ------- Improved Treads Medium Treads Medium Treads Medium Treads > --- UTILITY ---------- Improved Heat Sink Advanced Heat Sink Huge Storage Unit Improved Signal Interpreter IFF Parser Heavy Armor Plating > --- WEAPON ----------- Shock Rifle Tesla Rifle Improved Spread Laser Improved Spread Laser > --- INVENTORY -------- Improved Deuterium Engine Angular Momentum Engine Large Battery Heavy Armor Plating Improved Trap Extractor Lightning Gun Wave Gun Plasma Cannon Heavy Phase Cannon Gauss Cannon Heavy Shock Bomb Launcher Remote Datajack Mining Laser Signal Generator [Rating: 70] Favorites ----------- Power Improved Deuterium Engine Engine Improved Deuterium Engine Power Core Enhanced Nuclear Core Reactor Fusion Reactor Propulsion Wheel Treads Medium Treads Leg Aluminum Leg Wheel Wheel Hover Unit Antigrav System Flight Unit VTOL Module Utility Huge Storage Unit Device Improved Heat Sink Storage Huge Storage Unit Processor Improved Signal Interpreter Protection Heavy Armor Plating Weapon Improved Spread Laser Energy Gun Improved Spread Laser Energy Cannon Plasma Cannon Ballistic Gun KE Penetrator Ballistic Cannon Gauss Cannon Launcher Rocket Launcher Special Weapon Remote Datajack Piercing Weapon Plasma Lance Build | -11 -10 -10 -10 -9 -8 -7 -7 -6 -6 -6 -6 -5 -5 -5 -5 -4 -4 ------- Run | Yrd Mat Min Exi Min Mat Fac Sto Fac Low Low Dat Pro Fac Was Fac Fac Upp Slots Evolved 12 | . . . . . 4 2 . 2 . . . . 2 . . 2 . Power 1 | . . . . . . 1 . . . . . . . . . . . Propulsion 2 | . . . . . 2 . . . . . . . . . . . . Utility 7 | . . . . . 2 . . 2 . . . . 1 . . 2 . Weapon 2 | . . . . . . 1 . . . . . . 1 . . . . Parts Attached 230 | 7 9 3 . . 37 46 18 3 . 4 . 27 21 . 31 19 5 Power 35 | 1 . 1 . . 3 12 4 1 . . . 5 3 . 2 2 1 Engine 20 | 1 . 1 . . 2 4 4 . . . . 5 2 . . 1 . Core 14 | . . . . . 1 8 . 1 . . . . . . 2 1 1 Reactor 1 | . . . . . . . . . . . . . 1 . . . . Propulsion 75 | 2 4 . . . 16 15 2 . . . . 11 5 . 9 8 3 Treads 13 | 2 . . . . 2 2 . . . . . 5 . . . 2 . Leg 14 | . . . . . 8 . . . . . . 2 . . . 4 . Wheel 33 | . 4 . . . 6 10 2 . . . . 4 . . 5 2 . Hover 7 | . . . . . . 1 . . . . . . . . 3 . 3 Flight 8 | . . . . . . 2 . . . . . . 5 . 1 . . Utility 50 | 2 2 1 . . 8 2 5 2 . . . 4 9 . 11 4 . Device 38 | 1 1 . . . 6 2 5 . . . . 2 7 . 11 3 . Storage 3 | 1 1 . . . . . . . . . . . 1 . . . . Processor 2 | . . 1 . . 1 . . . . . . . . . . . . Hackware . | . . . . . . . . . . . . . . . . . . Protection 7 | . . . . . 1 . . 2 . . . 2 1 . . 1 . Artifact . | . . . . . . . . . . . . . . . . . . Weapon 70 | 2 3 1 . . 10 17 7 . . 4 . 7 4 . 9 5 1 Energy Gun 45 | . 2 . . . 4 16 5 . . 3 . 6 2 . 3 4 . Energy Cannon 12 | . 1 . . . 5 1 1 . . 1 . . 2 . 1 . . Ballistic Gun 4 | 2 . . . . . . . . . . . . . . 2 . . Ballistic Cannon 4 | . . 1 . . . . . . . . . 1 . . 2 . . Launcher 2 | . . . . . 1 . . . . . . . . . 1 . . Special Weapon 2 | . . . . . . . 1 . . . . . . . . . 1 Impact Weapon . | . . . . . . . . . . . . . . . . . . Slashing Weapon . | . . . . . . . . . . . . . . . . . . Piercing Weapon 1 | . . . . . . . . . . . . . . . . 1 . Special Melee Weapon . | . . . . . . . . . . . . . . . . . . Unidentified Prototypes 14 | . . . . . 2 6 3 . . . . 1 1 . . 1 . Corrupted Parts 9 | . . . . . . 1 . . . . . 6 . . . 2 . System Corruption 43 | . . . . . . 3 . . . . . 35 . . . 5 . Parts Lost 124 | . . 1 . . 17 24 4 . . 2 . 18 25 1 6 17 9 Power 20 | . . 1 . . 2 4 . . . 1 . 3 4 . . 2 3 Propulsion 43 | . . . . . 7 10 2 . . . . 7 8 . 3 3 3 Utility 28 | . . . . . 5 2 2 . . . . 3 6 1 1 8 . Weapon 33 | . . . . . 3 8 . . . 1 . 5 7 . 2 4 3 Highest Loss Streak 12 | . . 1 . . 5 5 1 . . 2 . 12 7 1 3 12 4 To Critical Strikes 1 | . . . . . . . . . . . . . . . . 1 . Average Backups 13 | . 4 9 14 13 16 19 20 17 17 17 17 10 8 3 2 . 2 Power 2 | . . . 3 2 4 4 2 2 2 2 2 . 1 . . . . Propulsion 1 | . 1 4 4 4 . . 3 4 4 4 4 1 . . . . 1 Utility 3 | . 1 1 2 3 3 5 6 3 3 3 3 3 2 1 1 . . Weapon 5 | . 1 3 4 4 8 7 6 7 7 7 7 3 3 2 1 . . Tool/Special . | . . . . . . . . . . . . . . . . . . Unused Backups 31 | . 4 . . 2 11 3 4 1 . . . . . . 3 . 3 Power 13 | . . . . 2 8 3 . . . . . . . . . . . Propulsion 6 | . 2 . . . . . . 1 . . . . . . 1 . 2 Utility 3 | . 1 . . . . . 1 . . . . . . . 1 . . Weapon 8 | . 1 . . . 3 . 2 . . . . . . . 1 . 1 Tool/Special 1 | . . . . . . . 1 . . . . . . . . . . Average Slot Usage (%) 80 | . 99 99 100 100 88 78 91 92 93 87 86 80 77 8 47 55 34 Engine 7 | . 14 13 14 14 5 5 11 8 6 6 6 9 8 . . 1 3 Core 3 | . . . . . 2 8 2 3 6 . . . . . 5 7 2 Treads 5 | . 10 . . . 2 6 . . . . . 12 10 . . . . Wheel 10 | . 16 28 28 28 20 3 22 20 20 20 20 4 . . 7 4 . Device 13 | . 18 14 . . 16 14 14 13 13 13 13 7 14 . 20 19 . Storage 6 | . 9 14 14 14 9 7 7 6 6 6 6 6 8 4 . . . Processor 5 | . . . 14 14 9 7 7 6 6 6 6 6 5 4 . . . Protection 2 | . . . . . . . . 12 13 13 13 10 2 . . 1 . Energy Gun 14 | . 9 14 14 14 9 21 16 13 13 16 13 18 10 . 5 13 9 Energy Cannon 3 | . 9 5 . . 6 1 5 6 6 3 6 1 7 . . . . Ballistic Cannon 1 | . . 8 14 14 . . . . . . . . 2 . . . . Peak Build Rating 70 | 7 9 13 13 14 36 48 52 55 53 55 55 59 70 5 70 67 55 Average Rating 40 | 5 8 11 12 12 27 39 47 53 53 52 55 48 54 4 41 50 40 On Entrance 32 | . 7 9 11 13 13 35 48 48 53 53 55 55 56 5 1 62 55 Avg Prop Armor Cover (%) 6 | . . . . . . 5 . . . . . . 5 . . 5 8 Naked Turns 69 | . . . . . . . . . . . . . . 6 63 . . Heaviest Build 151 | 15 90 94 93 93 97 115 120 125 119 119 118 136 151 3 50 42 27 Greatest Support 107 | 40 40 32 32 32 64 83 54 54 54 54 54 107 107 3 46 75 75 Greatest Overweight (x) 50 | . 29 2 2 2 31 37 3 2 2 2 2 11 50 . 5 13 1 Average Overweight (x) 2 | . 1 2 2 2 1 6 2 2 2 1 2 1 4 . . 1 . Largest Inventory Capacity 25 | 8 25 25 25 25 25 25 25 25 25 25 25 25 25 5 5 5 5 Average Capacity 22 | 7 13 25 25 25 25 25 25 25 25 25 25 25 24 5 5 5 5 Most Carried 25 | 3 9 11 15 16 25 25 25 21 21 21 20 20 16 4 5 2 5 Average Carried 14 | . 4 9 14 14 18 21 21 19 20 20 20 12 9 4 2 . 2 Final Capacity 25 | 8 25 25 25 25 25 25 25 25 25 25 25 25 5 5 5 5 5 Final Carried 25 | 2 9 11 15 15 25 24 22 19 21 20 20 11 4 4 2 1 4 Class Distribution -------------------- 25% | Scavenger-Skirmisher 20% | Skirmisher 20% | Scavenger-Tank 18% | Mutant 9% | Scavenger-Mutant Dominant Class ---------------- Mutant | -10/Materials Mutant | -10/Mines Mutant | -10/Exiles Mutant | -9/Mines Scavenger-Mutant | -8/Materials Skirmisher | -7/Factory Scavenger-Skirmisher | -7/Storage Scavenger-Tank | -6/Factory Scavenger-Tank | -6/Lower Caves Scavenger-Tank | -6/Lower Caves Commander-Tank | -6/Data Miner Scavenger-Tank | -5/Proximity Caves Scavenger-Skirmisher | -5/Factory Mutant | -5/Waste Mutant | -5/Factory Scavenger-Tank | -4/Factory Scavenger-Mutant | -4/Upper Caves Resources | -11 -10 -10 -10 -9 -8 -7 -7 -6 -6 -6 -6 -5 -5 -5 -5 -4 -4 ----------- Run | Yrd Mat Min Exi Min Mat Fac Sto Fac Low Low Dat Pro Fac Was Fac Fac Upp Matter Collected 3838 | 220 220 83 . 39 467 638 327 9 21 45 . 502 329 . 583 296 59 Remotely . | . . . . . . . . . . . . . . . . . . Salvage Created 11110 | 109 289 110 . . 1733 2398 1456 44 297 355 . 988 1554 . 695 767 315 Parts 541 | 4 21 11 . . 88 110 83 6 7 9 . 45 62 . 41 34 20 Haulers Intercepted 14 | . 1 . . . 3 4 5 . . . . . . . 1 . . Recyclers Shooed 15 | . . . . . . 5 1 . . . . . 2 . 3 4 . Parts Field Recycled . | . . . . . . . . . . . . . . . . . . Retrieved Matter . | . . . . . . . . . . . . . . . . . . Parts Self-Destructed 63 | . . . . . . . . . 6 . . 42 . . . . 15 Prevented 19 | . . . . . . . . . . . . 19 . . . . . Parts Restored . | . . . . . . . . . . . . . . . . . . Kills | -11 -10 -10 -10 -9 -8 -7 -7 -6 -6 -6 -6 -5 -5 -5 -5 -4 -4 ------- Run | Yrd Mat Min Exi Min Mat Fac Sto Fac Low Low Dat Pro Fac Was Fac Fac Upp Combat Hostiles Destroyed 193 | . 7 5 . . 35 38 25 1 6 7 . 19 24 . 8 8 10 Melee 11 | . . . . . . . . . . . . . . . . 3 8 Guns 113 | . 4 1 . . 14 34 15 1 5 7 . 13 5 . 8 4 2 Cannons 50 | . 3 4 . . 14 . 9 . 1 . . 2 17 . . . . AOE 8 | . . . . . 2 2 . . . . . 2 2 . . . . Classes Destroyed 17 | 2 4 . . . 7 1 1 . . 1 . . 1 . . . . Worker 22 | . . . . . 3 11 4 1 . . . . 1 . 2 . . Builder 13 | . . . . . 1 3 3 1 . . . . 3 . 1 1 . Tunneler 4 | 1 . . . . . 1 . . . . . . . . . 2 . Hauler 14 | . 1 . . . 3 4 5 . . . . . . . 1 . . Recycler 12 | 1 . . . . 1 4 1 . . . . . 3 . 1 1 . Mechanic 2 | . . . . . 1 . . . . . . . 1 . . . . Operator 2 | . . . . . . . 2 . . . . . . . . . . Watcher 11 | . 1 . . . 4 3 1 . . . . . 1 . . 1 . Swarmer 54 | . 3 3 . . 12 10 6 1 . . . 4 6 . 1 . 8 Grunt 56 | . 4 2 . . 14 8 6 . 6 . . 6 8 . 1 1 . Brawler 3 | . . . . . 1 1 . . . . . 1 . . . . . Duelist 7 | . . . . . 1 2 . . . . . 4 . . . . . Sentry 24 | . . . . . 6 5 9 . . . . 1 1 . 1 1 . Hunter 13 | . . . . . 1 3 1 . . . . 2 . . 2 4 . Programmer 28 | . . . . . . 9 3 . . . . 1 8 . 3 2 2 Behemoth 1 | . . . . . . . . . . . . . 1 . . . . Wasp 1 | . . . . . . . . . . 1 . . . . . . . Thug 4 | . . . . . . . . . . 4 . . . . . . . Butcher 1 | . . . . . . . . . . 1 . . . . . . . Mutant 1 | . . . . . . . . . . 1 . . . . . . . Best Kill Streak 9 | 2 3 3 . . 7 9 4 1 3 5 . 5 6 . 5 3 7 Combat Bots Only 7 | . 3 3 . . 6 6 3 1 3 5 . 5 5 . 4 3 7 Max Kills in Single Turn 5 | 1 2 1 . . 3 2 2 1 1 1 . 2 5 . 1 1 1 Gunslinging 1 | . . . . . 1 1 1 . . . . 1 . . . . . Exploded 2 | . . . . . 1 2 . . . . . 1 1 . . . . Melee 1 | . . . . . . . . . . . . . . . . 1 1 Uniques/NPCs Destroyed . | . . . . . . . . . . . . . . . . . . Combat | -11 -10 -10 -10 -9 -8 -7 -7 -6 -6 -6 -6 -5 -5 -5 -5 -4 -4 -------- Run | Yrd Mat Min Exi Min Mat Fac Sto Fac Low Low Dat Pro Fac Was Fac Fac Upp Hostile Shots Fired 1947 | . 63 22 . . 284 431 205 7 21 29 . 161 187 2 137 269 129 Missed 628 | . 13 7 . . 84 161 97 2 8 7 . 43 50 1 37 84 34 Hits 1319 | . 50 15 . . 200 270 108 5 13 22 . 118 137 1 100 185 95 Melee 11 | . . . . . 1 7 . . . . . 2 . 1 . . . Projectile 1308 | . 50 15 . . 199 263 108 5 13 22 . 116 137 . 100 185 95 Critical Strikes 43 | . . 1 . . 7 5 2 . 1 . . 8 4 . 7 5 3 Part Disruptions 5 | . . . . . . . . . . . . 1 2 . . 1 1 Damage Taken 15790 | . 465 114 . 6 2206 2659 770 54 187 288 . 1853 2480 28 1417 2072 1191 Core 2933 | . 100 12 . . 453 384 65 . 45 16 . 119 379 28 170 606 556 Absorbed by Shields . | . . . . . . . . . . . . . . . . . . Ignored by Resistances 5017 | . 141 34 . . 635 807 236 17 52 84 . 515 678 7 502 965 344 Regen/Repaired (Parts) 63 | . . . . . 27 . 36 . . . . . . . . . . Core Remaining (%) 54 | 100 . . . 55 17 . 35 . . . . 78 . . 42 . . Volleys Fired 584 | 3 33 9 . . 103 104 63 6 12 24 . 50 47 . 73 46 11 Largest 4 | 2 2 2 . . 2 3 3 3 3 3 . 3 4 . 4 4 3 Hottest 320 | 40 100 100 . . 138 240 240 240 240 240 . 243 320 . 252 300 250 Shots Fired 1373 | 6 66 18 . 2 197 293 182 12 34 55 . 131 162 . 95 102 18 Gun 1022 | 6 47 9 . 1 100 281 134 6 22 36 . 104 68 . 88 102 18 Cannon 336 | . 19 9 . 1 95 12 48 6 12 11 . 23 93 . 7 . . Launcher 2 | . . . . . 2 . . . . . . . . . . . . Special 13 | . . . . . . . . . . 8 . 4 1 . . . . Kinetic 143 | 6 28 5 . 1 . . . . . . . 4 21 . 78 . . Thermal 1007 | . 38 13 . 1 150 217 182 12 34 41 . 64 119 . 16 102 18 Explosive 2 | . . . . . 2 . . . . . . . . . . . . Electromagnetic 208 | . . . . . 45 76 . . . 6 . 59 21 . 1 . . Robot Hit Streak 40 | 3 18 5 . . 14 25 24 10 17 26 . 32 20 . 40 24 3 Robot Miss Streak 8 | 1 4 2 . 1 2 8 5 1 3 2 . 4 2 . 2 4 2 Penetration Max 1 | . . . . . . . . . . . . . . . 1 . . Secondary Targets 15 | . 1 . . . 1 5 2 . . . . 4 . . 2 . . Max Gunslinging Chain 2 | . 1 . . . 1 1 2 . . . . 1 . . 1 . . Shots Hit Robots 1020 | 4 49 11 . . 149 213 122 8 23 37 . 94 117 . 76 92 25 Core Hits 708 | 2 14 5 . . 60 180 134 6 18 31 . 77 109 . 31 31 10 Critical Kills . | . . . . . . . . . . . . . . . . . . Critical Parts Destroyed 5 | . . . . . . . . . . . . . . . 5 . . Critical Strikes 30 | . . . . . 7 3 . . . . . 3 4 . 5 6 2 Burn 13 | . . . . . 5 3 . . . . . . . . . 5 . Destroy 5 | . . . . . . . . . . . . . . . 5 . . Blast 2 | . . . . . . . . . . . . . 2 . . . . Corrupt 7 | . . . . . 2 . . . . . . 3 2 . . . . Impale 3 | . . . . . . . . . . . . . . . . 1 2 Melee Attacks 35 | . . . . . . . . . . . . . . . . 17 18 Impact . | . . . . . . . . . . . . . . . . . . Slashing . | . . . . . . . . . . . . . . . . . . Piercing 35 | . . . . . . . . . . . . . . . . 17 18 Sneak Attacks 2 | . . . . . . . . . . . . . . . . 2 . Combat Hostiles . | . . . . . . . . . . . . . . . . . . Follow-up Attacks . | . . . . . . . . . . . . . . . . . . Damage Inflicted 27019 | 56 660 208 . 13 3679 5029 3277 203 607 842 . 2370 4362 . 2137 2648 928 Guns 17697 | 56 450 65 . . 1406 4544 2538 126 479 679 . 1859 1316 . 1959 1918 302 Cannons 5951 | . 210 143 . . 1783 89 619 77 128 163 . 444 2117 . 178 . . Explosions 1821 | . . . . . 478 347 . . . . . 67 929 . . . . Melee 1356 | . . . . . . . . . . . . . . . . 730 626 Ramming 194 | . . . . 13 12 49 120 . . . . . . . . . . Kinetic 2576 | 56 300 107 . . . . . . . . . . 238 . 1875 . . Thermal 18564 | . 360 101 . . 2291 4194 3157 203 607 758 . 1409 3006 . 258 1918 302 Explosive 1329 | . . . . . 478 . . . . . . . 851 . . . . Electromagnetic 3000 | . . . . . 898 786 . . . 84 . 961 267 . 4 . . Impact . | . . . . . . . . . . . . . . . . . . Slashing . | . . . . . . . . . . . . . . . . . . Piercing 1356 | . . . . . . . . . . . . . . . . 730 626 Highest Corruption 38 | . 1 1 1 1 1 15 18 . . 1 1 38 4 8 13 6 10 Average Corruption 6 | . 1 1 1 1 1 7 15 . . 1 1 9 2 6 9 5 8 Corruption Purged . | . . . . . . . . . . . . . . . . . . Corruption Blocked . | . . . . . . . . . . . . . . . . . . Effects 416 | . 3 2 5 3 7 123 87 . . . 1 91 28 2 47 8 9 Message Errors 92 | . 2 1 1 . 2 22 22 . . . . 23 2 1 11 1 4 Matter Fused 99 | . . 1 3 . 1 34 11 . . . . 22 11 . 12 2 2 Heat Flow Errors 62 | . . . 1 . . 15 18 . . . 1 13 3 . 6 3 2 Energy Discharges 44 | . . . . . 2 18 10 . . . . 5 2 1 5 . 1 Parts Rejected 4 | . . . . . 1 1 1 . . . . . 1 . . . . Parts Fused 5 | . . . . . . 2 2 . . . . 1 . . . . . Data Loss (minor) 38 | . . . . 1 . 13 8 . . . . 8 2 . 5 1 . Data Loss (major) 22 | . . . . . . 7 5 . . . . 6 2 . 2 . . Misfires 26 | . . . . 2 1 5 4 . . . . 10 2 . 2 . . Alerts 11 | . 1 . . . . 2 . . . . . 2 2 . 3 1 . Misdirections 2 | . . . . . . . 1 . . . . . . . 1 . . Weapon Failures 11 | . . . . . . 4 5 . . . . 1 1 . . . . Overload Shots . | . . . . . . . . . . . . . . . . . . Overflow Damage 497 | . 14 . . . 58 36 26 . . . . 12 152 . . 156 43 Projectiles 91 | . 14 . . . 58 . . . . . . 12 7 . . . . Explosions 181 | . . . . . . 36 . . . . . . 145 . . . . Melee 225 | . . . . . . . 26 . . . . . . . . 156 43 Knockbacks 5 | . . . . . . . . . . . . . 5 . . . . Impact . | . . . . . . . . . . . . . . . . . . Kinetic 5 | . . . . . . . . . . . . . 5 . . . . Secondary . | . . . . . . . . . . . . . . . . . . Self-Inflicted Damage 331 | . . . . 6 80 65 59 . . . . 40 81 . . . . Shots 9 | . . . . . 2 3 . . . . . 1 3 . . . . Rammed 12 | . . . . 1 1 4 5 . . . . . . . 1 . . Targets Rammed 13 | . . . . 1 1 5 5 . . . . . . . 1 . . Kicked . | . . . . . . . . . . . . . . . . . . Crushed 1 | . . . . . . 1 . . . . . . . . . . . Highest Temperature 427 | . 60 19 109 . 405 343 389 190 198 199 184 398 333 . 248 427 352 Average Temperature 98 | . 16 11 59 . 107 66 96 96 122 99 110 110 118 . 71 99 161 Received Heat Transfer 3347 | . 309 60 . . 1098 402 297 . 126 119 . 321 363 . 216 36 . Effects 21 | . . . . . 8 . 3 . . . . 4 3 . . 2 1 Shutdowns 3 | . . . . . 1 . . . . . . 1 1 . . . . Energy Bleed 3 | . . . . . . . . . . . . . 2 . . . 1 Interference 13 | . . . . . 7 . 3 . . . . 3 . . . . . Short Circuit 2 | . . . . . . . . . . . . . . . . 2 . Siege Activations . | . . . . . . . . . . . . . . . . . . Martial Activations . | . . . . . . . . . . . . . . . . . . Shielding Activations . | . . . . . . . . . . . . . . . . . . Robots Disrupted 4 | . . . . . . 2 . . . . . 1 1 . . . . Combat Hostiles 4 | . . . . . . 2 . . . . . 1 1 . . . . Robots Corrupted 8 | . . . . . 5 . 1 . . . . 2 . . . . . Combat Hostiles 5 | . . . . . 3 . . . . . . 2 . . . . . Parts Fried 28 | . . . . . 14 1 3 . . . . 10 . . . . . Impact Corruptions 1 | . . . . . . . 1 . . . . . . . . . . Robots Melted 6 | . . . . . 2 2 1 . . . . . . . . 1 . Combat Hostiles 6 | . . . . . 2 2 1 . . . . . . . . 1 . Parts Melted 68 | . 1 . . . 7 20 12 2 5 6 . . 4 . 2 8 1 Heat Transferred 30325 | . 794 224 . . 4682 7351 4595 450 1350 1648 . 1602 3411 . 444 3367 407 Parts Sabotaged . | . . . . . . . . . . . . . . . . . . Parts Stolen . | . . . . . . . . . . . . . . . . . . Parts Stripped . | . . . . . . . . . . . . . . . . . . Power Chain Reactions 6 | . . . . . . 5 . . . . . 1 . . . . . Alert | -11 -10 -10 -10 -9 -8 -7 -7 -6 -6 -6 -6 -5 -5 -5 -5 -4 -4 ------- Run | Yrd Mat Min Exi Min Mat Fac Sto Fac Low Low Dat Pro Fac Was Fac Fac Upp Maximum Alert Level 1 | . . . . . . . 1 . . . . . 1 . . . . Low Security (%) 92 | 100 100 100 . 100 100 100 63 100 . . . . 84 100 100 100 . Level 1 7 | . . . . . . . 36 . . . . . 15 . . . . Level 2 . | . . . . . . . . . . . . . . . . . . Level 3 . | . . . . . . . . . . . . . . . . . . Level 4 . | . . . . . . . . . . . . . . . . . . Level 5 . | . . . . . . . . . . . . . . . . . . High Security . | . . . . . . . . . . . . . . . . . . Max Security . | . . . . . . . . . . . . . . . . . . Peak Influence 299 | 5 82 70 . 20 191 174 271 94 . . . . 299 . 154 75 . Initial 45 | . . 6 . . . . 45 33 . . . . . . . . . Average 57 | . 18 18 . . 63 28 167 65 . . . . 72 . 33 14 . Influence Increases 6543 | 10 199 121 . 21 976 1206 961 126 167 . . 742 1073 . 409 227 305 Destroy 0b10 Robot/C 4140 | . 140 100 . 20 700 760 560 80 120 . . 540 500 . 260 160 200 Destroy 0b10 Robot/NC 405 | 10 10 . . . 65 130 85 10 . . . . 45 . 25 25 . Destroy Leader 1012 | . 34 20 . . 134 264 214 20 10 . . 70 112 . 62 42 30 Allied During Kill 95 | . . . . . . . 56 15 7 . . 12 1 . 4 . . Successful Hack 46 | . . . . . 6 . 2 . . . . . . . 38 . . Disable Machine 171 | . . . . . 18 9 9 . . . . . 135 . . . . Anti-Garrison Action 150 | . . . . . . . . . . . . . 150 . . . . Destroy Structure 224 | . . 1 . 1 38 13 20 1 . . . . 130 . 20 . . Partial Spotted 15 | . . . . . . 15 . . . . . . . . . . . Lose Combat Pursuer 285 | . 15 . . . 15 15 15 . 30 . . 120 . . . . 75 Influence Decreases 6418 | 10 179 141 . 21 976 1089 992 163 216 . . 742 1073 . 409 227 180 Entered New Map 162 | . . 14 . . . . 72 53 23 . . . . . . . . Time Decay 5153 | 10 179 121 . 1 806 960 860 90 115 . . 462 920 . 369 150 110 Lost Part 835 | . . 6 . . 170 129 40 . . . . 160 153 . 30 77 70 Lost Ally 268 | . . . . 20 . . 20 20 78 . . 120 . . 10 . . Squads Dispatched 54 | . . . . 1 11 18 6 . . . . 1 10 . 6 1 . Investigation 5 | . . . . . 2 . . . . . . . 2 . 1 . . Extermination 19 | . . . . . . 8 3 . . . . . 4 . 3 1 . Reinforcement 8 | . . . . . . 3 2 . . . . . 2 . 1 . . Assault 4 | . . . . 1 . . . . . . . 1 1 . 1 . . Garrison 18 | . . . . . 9 7 1 . . . . . 1 . . . . Intercept . | . . . . . . . . . . . . . . . . . . Searches Triggered . | . . . . . . . . . . . . . . . . . . Data Miner Redirects 1 | . . . . . . . . . . . . . . . 1 . . Construction Impeded 2 | . . . . . . 2 . . . . . . . . . . . Haulers Reinforced 2 | . . . . . . 1 1 . . . . . . . . . . Active Scanning Responses . | . . . . . . . . . . . . . . . . . . Cargo Convoy Interrupts 1 | . . . . . . . . . . . . . 1 . . . . Stealth | -11 -10 -10 -10 -9 -8 -7 -7 -6 -6 -6 -6 -5 -5 -5 -5 -4 -4 --------- Run | Yrd Mat Min Exi Min Mat Fac Sto Fac Low Low Dat Pro Fac Was Fac Fac Upp Distress Signals 19 | . 1 . . . 4 2 5 . . . . 2 1 . 2 2 . Communications Jammed . | . . . . . . . . . . . . . . . . . . Distress Signals . | . . . . . . . . . . . . . . . . . . Times Spotted 304 | . 11 5 . . 53 50 35 3 8 11 . 36 30 6 22 15 19 Peak Tracking Total 9 | . 3 3 . . 8 5 3 3 4 5 . 9 5 6 7 8 6 Tactical Retreats 15 | . 1 . . . 1 1 1 . 2 . . 7 . . . . 2 Traps | -11 -10 -10 -10 -9 -8 -7 -7 -6 -6 -6 -6 -5 -5 -5 -5 -4 -4 ------- Run | Yrd Mat Min Exi Min Mat Fac Sto Fac Low Low Dat Pro Fac Was Fac Fac Upp Traps Triggered 16 | . 2 . . . 7 1 3 . . . . . 3 . . . . Indirectly . | . . . . . . . . . . . . . . . . . . Trap Hack Attempts . | . . . . . . . . . . . . . . . . . . Triggered . | . . . . . . . . . . . . . . . . . . Disarmed . | . . . . . . . . . . . . . . . . . . Reprogrammed . | . . . . . . . . . . . . . . . . . . Reused 1 | . . . . . . . . . . . . 1 . . . . . Traps Extracted . | . . . . . . . . . . . . . . . . . . Installed 1 | . . . . . . . . . . . . 1 . . . . . Triggered 1 | . . . . . . . . . . . . 1 . . . . . Most Traps Carried 1 | . . . . . . . . . 1 1 1 1 . . . . . Objects Rigged 15 | . . . . . 12 3 . . . . . . . . . . . Exploded 7 | . . . . . 7 . . . . . . . . . . . . Machines | -11 -10 -10 -10 -9 -8 -7 -7 -6 -6 -6 -6 -5 -5 -5 -5 -4 -4 ---------- Run | Yrd Mat Min Exi Min Mat Fac Sto Fac Low Low Dat Pro Fac Was Fac Fac Upp Machines Disabled 22 | . . . . . 2 1 1 . . 1 . 1 16 . . . . Max in Single Turn 5 | . . . . . 2 1 1 . . 1 . 1 5 . . . . Garrison Access 3 | . . . . . . 1 1 . . . . . 1 . . . . Machines Repaired . | . . . . . . . . . . . . . . . . . . Machines Dismantled . | . . . . . . . . . . . . . . . . . . Machines Sabotaged . | . . . . . . . . . . . . . . . . . . Overloaded Fab Kills . | . . . . . . . . . . . . . . . . . . Hacking | -11 -10 -10 -10 -9 -8 -7 -7 -6 -6 -6 -6 -5 -5 -5 -5 -4 -4 --------- Run | Yrd Mat Min Exi Min Mat Fac Sto Fac Low Low Dat Pro Fac Was Fac Fac Upp Machines Accessed 30 | . 2 . 1 . 4 2 5 1 2 1 4 1 1 . 4 2 . Terminals 8 | . . . . . 1 . 3 1 . . . . . . 2 1 . Fabricators 1 | . . . . . . . . . . . . . . . 1 . . Repair Stations 4 | . . . . . 1 1 1 . . . . . . . 1 . . Recycling Units 2 | . 2 . . . . . . . . . . . . . . . . Scanalyzers 2 | . . . . . 1 . . . . . . . . . . 1 . Garrison Access 4 | . . . . . 1 1 1 . . . . . 1 . . . . Total Hacks 63 | . 2 . 1 . 10 2 9 1 4 1 17 1 2 . 10 3 . Successful 48 | . 2 . 1 . 7 1 6 1 4 1 17 1 . . 4 3 . Failed 15 | . . . . . 3 1 3 . . . . . 2 . 6 . . Catastrophic 2 | . . . . . 1 . . . . . . . . . 1 . . Database Lockouts . | . . . . . . . . . . . . . . . . . . Manual 8 | . . . 1 . 2 . . . . . . . 2 . 3 . . Terminals 15 | . . . . . 2 . 4 1 . . . . . . 6 2 . Fabricators 3 | . . . . . . . . . . . . . . . 3 . . Repair Stations 9 | . . . . . 4 1 3 . . . . . . . 1 . . Recycling Units 2 | . 2 . . . . . . . . . . . . . . . . Scanalyzers 3 | . . . . . 2 . . . . . . . . . . 1 . Garrison Access 7 | . . . . . 2 1 2 . . . . . 2 . . . . Terminal Hacks 32 | . . . 1 . 1 . 3 1 4 1 17 1 . . 1 2 . Record 11 | . . . . . . . 1 . 3 . 6 1 . . . . . Part Schematic 3 | . . . . . . . . . . . 3 . . . . . . Robot Schematic 5 | . . . . . . . . . . . 5 . . . . . . Prototype ID Bank 3 | . . . . . . . . . . . 3 . . . . . . Open Door 3 | . . . . . . . 1 . 1 1 . . . . . . . Open DSF 1 | . . . . . . . . 1 . . . . . . . . . Branch Access Points 1 | . . . . . . . . . . . . . . . . 1 . Emergency Access Points 1 | . . . . . . . . . . . . . . . . 1 . Alert Level 1 | . . . . . . . 1 . . . . . . . . . . Zone Layout 2 | . . . . . 1 . . . . . . . . . 1 . . Proto ID Catalog 1 | . . . 1 . . . . . . . . . . . . . . Fabricator Hacks 2 | . . . . . . . . . . . . . . . 2 . . Load Schematic 1 | . . . . . . . . . . . . . . . 1 . . Build 1 | . . . . . . . . . . . . . . . 1 . . Repair Station Hacks 6 | . . . . . 4 . 2 . . . . . . . . . . Scan Component 3 | . . . . . 2 . 1 . . . . . . . . . . Repair 3 | . . . . . 2 . 1 . . . . . . . . . . Recycling Unit Hacks 2 | . 2 . . . . . . . . . . . . . . . . Report Inventory 2 | . 2 . . . . . . . . . . . . . . . . Scanalyzer 3 | . . . . . 2 . . . . . . . . . . 1 . Insert Component 1 | . . . . . 1 . . . . . . . . . . . . Analyze 1 | . . . . . 1 . . . . . . . . . . . . Retrieve Study 1 | . . . . . . . . . . . . . . . . 1 . Garrison Access Hacks 2 | . . . . . . 1 1 . . . . . . . . . . Seal Access 2 | . . . . . . 1 1 . . . . . . . . . . Unauthorized Hacks 1 | . . . . . . . . . . . . . . . 1 . . Terminals 1 | . . . . . . . . . . . . . . . 1 . . Assimilate 1 | . . . . . . . . . . . . . . . 1 . . Fabricators . | . . . . . . . . . . . . . . . . . . Repair Stations . | . . . . . . . . . . . . . . . . . . Recycling Units . | . . . . . . . . . . . . . . . . . . Scanalyzers . | . . . . . . . . . . . . . . . . . . Garrison Access . | . . . . . . . . . . . . . . . . . . Data Cores Recovered 1 | . . . . . . . 1 . . . . . . . . . . Used . | . . . . . . . . . . . . . . . . . . Hacking Detections 13 | . 2 . . . 4 1 1 . . . . . 1 . 4 . . Full Trace Events 2 | . . . . . 1 . . . . . . . . . 1 . . Feedback Events . | . . . . . . . . . . . . . . . . . . Feedback Blocked . | . . . . . . . . . . . . . . . . . . Robot Schematics Acquired 5 | . . . . . . . . . . . 5 . . . . . . Robots Built . | . . . . . . . . . . . . . . . . . . Authchips . | . . . . . . . . . . . . . . . . . . Time . | . . . . . . . . . . . . . . . . . . Total Robot Build Rating . | . . . . . . . . . . . . . . . . . . Part Schematics Acquired 4 | . . . . . 1 . . . . . 3 . . . . . . Parts Built 1 | . . . . . . . . . . . . . . . 1 . . Authchips . | . . . . . . . . . . . . . . . . . . Time 84 | . . . . . . . . . . . . . . . 84 . . Total Part Build Rating 6 | . . . . . . . . . . . . . . . 6 . . Part Studies Acquired 1 | . . . . . . . . . . . . . . . . 1 . Parts Repaired 3 | . . . . . 2 . 1 . . . . . . . . . . Time 78 | . . . . . 52 . 26 . . . . . . . . . . Parts Recycled . | . . . . . . . . . . . . . . . . . . Recycled Matter . | . . . . . . . . . . . . . . . . . . Retrieved Matter . | . . . . . . . . . . . . . . . . . . Retrieved Components . | . . . . . . . . . . . . . . . . . . Parts Scanalyzed 1 | . . . . . 1 . . . . . . . . . . . . Part Schematics Acquired 1 | . . . . . 1 . . . . . . . . . . . . Parts Damaged . | . . . . . . . . . . . . . . . . . . Bothacking | -11 -10 -10 -10 -9 -8 -7 -7 -6 -6 -6 -6 -5 -5 -5 -5 -4 -4 ------------ Run | Yrd Mat Min Exi Min Mat Fac Sto Fac Low Low Dat Pro Fac Was Fac Fac Upp Used RIF Installer . | . . . . . . . . . . . . . . . . . . Robots Hacked 1 | . . . . . . . . . . . . . 1 . . . . Non-combat . | . . . . . . . . . . . . . . . . . . Combat 1 | . . . . . . . . . . . . . 1 . . . . Robot Hacks Applied 1 | . . . . . . . . . . . . . 1 . . . . parse_system 1 | . . . . . . . . . . . . . 1 . . . . Relay Couplers Released 2 | . . . . . . . . . . . . . 2 . . . . Machine Destruction 2 | . . . . . . . . . . . . . 2 . . . . Fabnet Peak Effective % . | . . . . . . . . . . . . . . . . . . Robots Rewired 8 | . . . . . . . . . . 5 . 3 . . . . . Allies Hacked 1 | . . . . . . . . . . . . . . . 1 . . Hacks Repelled . | . . . . . . . . . . . . . . . . . . Allies | -11 -10 -10 -10 -9 -8 -7 -7 -6 -6 -6 -6 -5 -5 -5 -5 -4 -4 -------- Run | Yrd Mat Min Exi Min Mat Fac Sto Fac Low Low Dat Pro Fac Was Fac Fac Upp Total Allies 20 | . . . . 1 . . 10 . . 5 . 3 . . 1 . . Largest Group 10 | . . . . 1 . . 10 5 4 5 5 4 1 . 1 . . Highest-Rated Group 173 | . . . . 31 . . 173 93 64 152 152 121 30 . 26 . . Highest-Rated Ally 31 | . . . . 31 . . 29 29 16 31 31 31 30 . 26 . . Total Orders 4 | . . . . . . . . . . . . 1 . . 3 . . GUARD 1 | . . . . . . . . . . . . 1 . . . . . EXPLORE 3 | . . . . . . . . . . . . . . . 3 . . Ally Attacks 176 | . . . . 9 . . 35 13 31 12 . 47 6 . 23 . . Total Damage 2717 | . . . . 171 . . 409 184 273 190 . 933 215 . 342 . . Kills 27 | . . . . 1 . . 4 3 . 4 . 8 1 . 6 . . Allies Corrupted . | . . . . . . . . . . . . . . . . . . Allies Melted . | . . . . . . . . . . . . . . . . . . Intel | -11 -10 -10 -10 -9 -8 -7 -7 -6 -6 -6 -6 -5 -5 -5 -5 -4 -4 ------- Run | Yrd Mat Min Exi Min Mat Fac Sto Fac Low Low Dat Pro Fac Was Fac Fac Upp Active Infowar (turns) 2000 | 14 375 . . . . . . . . . . . 1611 . . . . IFF 1611 | . . . . . . . . . . . . . 1611 . . . . Seismic 389 | 14 375 . . . . . . . . . . . . . . . . Robot Analysis Total . | . . . . . . . . . . . . . . . . . . Derelict Logs Recovered 7 | . . 1 . . . . . . 3 . . 2 . . . . 1 Drone Launches 16 | . . . . . . . . . . . . . . . 16 . . Drone Recoveries 8 | . . . . . . . . . . . . . . . 8 . . Exploration | -11 -10 -10 -10 -9 -8 -7 -7 -6 -6 -6 -6 -5 -5 -5 -5 -4 -4 ------------- Run | Yrd Mat Min Exi Min Mat Fac Sto Fac Low Low Dat Pro Fac Was Fac Fac Upp Turns Passed 20098 | 89 602 395 765 247 2190 4557 1723 195 724 640 104 2732 2945 41 1222 587 340 Spaces Moved 8993 | 44 372 278 585 145 1009 911 1106 133 553 449 85 1113 618 81 849 343 319 Core 438 | 2 1 . . . 12 109 . . . . . . 76 81 128 10 19 Treads 1924 | 42 107 . . . 92 463 . . . . . 684 523 . . 13 . Legs 361 | . . . . . 86 . . . . . . 95 . . . 83 97 Wheels 5640 | . 264 278 585 145 819 286 1106 133 553 449 85 334 . . 366 237 . Hover 269 | . . . . . . 46 . . . . . . . . 20 . 203 Flight 361 | . . . . . . 7 . . . . . . 19 . 335 . . Fastest Speed 40 | 50 80 130 130 130 105 110 116 123 123 108 123 115 50 50 40 50 50 Average Speed 186 | 155 125 130 130 130 160 446 118 123 123 122 123 220 435 50 75 111 75 Slowest Speed 2755 | 160 1500 130 130 130 1600 1900 135 123 123 123 123 610 2755 50 300 700 120 Overloaded Moves . | . . . . . . . . . . . . . . . . . . Propulsion Burnouts . | . . . . . . . . . . . . . . . . . . Robots Hopped 2 | . . . . . . . . . . . . . . . 2 . . Potential Cave-ins . | . . . . . . . . . . . . . . . . . . Cave-ins Triggered . | . . . . . . . . . . . . . . . . . . Exploration Rate (%) 50 | 3 66 56 92 25 62 27 97 4 68 60 69 92 20 86 31 11 39 Regions Visited 17 Branch Regions 9 Pre-discovered Areas 8 | . . 1 . . . . . . 4 . 1 1 . . . . 1 Known Exits Taken 12 | . . 1 1 1 1 1 1 1 1 1 1 1 . . . 1 . Unknown Exits Taken 3 | 1 1 . . . . . . . . . . . . . 1 . . Scrap Searched 4 | . . 1 . . . . . . 1 . . 1 . . . . 1 Spaces Dug 6 | . . . . . . . 4 . . . . . . . 2 . . Terrain Destroyed 163 | . . 1 . 1 45 15 19 . . . . 7 67 . 8 . . Melee . | . . . . . . . . . . . . . . . . . . Projectile 37 | . . 1 . 1 2 . 19 . . . . . 7 . 7 . . AOE 125 | . . . . . 43 15 . . . . . 7 60 . . . . Terrain Rammed . | . . . . . . . . . . . . . . . . . . Walls Destroyed . | . . . . . . . . . . . . . . . . . . Machines Disabled . | . . . . . . . . . . . . . . . . . . Actions | -11 -10 -10 -10 -9 -8 -7 -7 -6 -6 -6 -6 -5 -5 -5 -5 -4 -4 --------- Run | Yrd Mat Min Exi Min Mat Fac Sto Fac Low Low Dat Pro Fac Was Fac Fac Upp Total 11079 | 56 444 293 589 205 1383 1146 1369 154 566 491 84 1291 765 80 1339 449 375 Wait 893 | . 2 . . 54 147 22 128 11 . 7 . 75 57 . 358 17 15 Move 8973 | 43 371 277 584 144 1008 910 1105 132 552 448 84 1112 618 80 844 342 319 Hop 2 | . . . . . . . . . . . . . . . 2 . . Pick Up 151 | 3 15 3 4 3 40 28 15 . 2 1 . 12 8 . 12 2 3 Fast Attach 138 | 6 6 1 . . 23 25 12 1 . 2 . 9 11 . 22 16 4 Attach 107 | 1 3 1 . . 18 23 10 2 . 2 . 20 14 . 9 3 1 Detach 3 | . . . . . 1 . 1 . . . . . . . . . 1 Swap 19 | . 1 1 . . 4 1 3 . . 4 . 5 . . . . . Drop 135 | . 13 1 . 3 26 25 19 2 . 3 . 7 10 . 17 6 3 Fire 584 | 3 33 9 . . 103 104 63 6 12 24 . 50 47 . 73 46 11 Melee 35 | . . . . . . . . . . . . . . . . 17 18 Ram 8 | . . . . 1 1 . 5 . . . . . . . 1 . . Kick . | . . . . . . . . . . . . . . . . . . Crush 5 | . . . . . . 5 . . . . . . . . . . . Escape Stasis 8 | . . . . . . . 8 . . . . . . . . . . Rewire 2 | . . . 1 . . . . . . . . . . . 1 . . Trap 16 | . . . . . 12 3 . . . . . 1 . . . . . Miscellaneous . | . . . . . . . . . . . . . . . . . . Route ------- -11/Scrapyard -10/Materials (discovered 3 exits: [*Mat] / [*Min x2]) -10/Mines (discovered 2 exits: [*Mat] / *Exi) -10/Exiles (discovered 2 exits: *Min x2) -9/Mines -8/Materials -7/Factory -7/Storage -6/Factory -6/Lower Caves -6/Lower Caves (discovered 2 exits: *Fac / *Dat) -6/Data Miner -5/Proximity Caves -5/Factory -5/Waste -5/Factory -4/Factory (discovered 5 exits: *Upp x2 / *Ext x2 / Arm) -4/Upper Caves History --------- Turn | Location | Event 23 | -11/Scrapyard | Discovered new exit (range 15) 90 | -11/Scrapyard | Entered Materials 257 | -10/Materials | Discovered new exit (range 6) 309 | -10/Materials | Build established: Mutant 491 | -10/Materials | Discovered new exit (range 5) 679 | -10/Materials | Discovered new exit (range 10) 692 | -10/Materials | Entered Mines 755 | -10/Mines | Met a Derelict bent on vengeance 766 | -10/Mines | Assembled infested the area 805 | -10/Mines | Received a Rocket Launcher from a helpful Derelict 840 | -10/Mines | A weapon hastily lodged in a ceiling crevice suddenly fell to the ground 1027 | -10/Mines | Discovered new exit (range 10) 1068 | -10/Mines | Learned location of Storage (-7) 1079 | -10/Mines | Deemed a non-threat by the Exiles lab entrance 1079 | -10/Mines | Discovered new exit (range 5) 1087 | -10/Mines | Identified exit to Exiles 1087 | -10/Mines | Entered Exiles 1088 | -10/Exiles | Identified exit to Mines 1123 | -10/Exiles | Met 8R-AWN 1145 | -10/Exiles | Met EX-HEX 1201 | -10/Exiles | Met EX-BIN 1339 | -10/Exiles | Met EX-DEC 1385 | -10/Exiles | Visited The Gauntlet 1671 | -10/Exiles | Aligned with FarCom system 1673 | -10/Exiles | Given EX-Vault access code 1708 | -10/Exiles | Opened EX-Vault 1718 | -10/Exiles | Found PSU Rigger 1748 | -10/Exiles | Warned to stay clear of 0b10 Research branches 1852 | -10/Exiles | Left Exiles lab with PSU Rigger 1852 | -10/Exiles | Entered Mines 1853 | -9/Mines | Met a Derelict testing a Signal Generator 1864 | -9/Mines | Found Signal Generator 2066 | -9/Mines | Discovered new exit (range 12) 2079 | -9/Mines | Identified exit to Materials 2099 | -9/Mines | Entered Materials 2099 | -8/Materials | Evolved 4 slots: Propulsion x2, Utility x2 2356 | -8/Materials | Repaired Com. Wheel 2384 | -8/Materials | Repaired Com. Wheel 2711 | -8/Materials | Garrison activated, responded to threat 2754 | -8/Materials | Lost 3 parts (2n1u) 3074 | -8/Materials | Build established: Scavenger-Mutant 3306 | -8/Materials | Garrison activated, responded to threat 3388 | -8/Materials | Lost 5 parts (1p4n) 3450 | -8/Materials | Lost 4 parts (1p1u2w) 3532 | -8/Materials | Core integrity fell below 50% 3791 | -8/Materials | Core integrity fell below 20% 3805 | -8/Materials | Garrison activated, responded to threat 3808 | -8/Materials | Lost 3 parts (1n1u1w) 4084 | -8/Materials | Discovered new exit (range 18) 4269 | -8/Materials | Identified exit to Factory 4289 | -8/Materials | Entered Factory 4289 | -7/Factory | Evolved 2 slots: Power x1, Weapon x1 4588 | -7/Factory | Build established: Scavenger-Skirmisher 4817 | -7/Factory | Garrison activated, responded to threat 5668 | -7/Factory | Build established: Skirmisher 5741 | -7/Factory | Lost 3 parts (2n1w) 7306 | -7/Factory | System corruption reached 10% 8254 | -7/Factory | Core integrity fell below 50% 8297 | -7/Factory | Garrison activated, responded to threat 8462 | -7/Factory | Lost 5 parts (3n2w) 8680 | -7/Factory | Garrison activated, responded to threat 8794 | -7/Factory | Build established: Scavenger-Skirmisher 8802 | -7/Factory | Discovered new exit (range 13) 8828 | -7/Factory | Identified exit to Storage 8846 | -7/Factory | Entered Storage 8997 | -7/Storage | Repaired Lgt. Ion Engine 9351 | -7/Storage | Garrison activated, responded to threat 9455 | -7/Storage | Discovered new exit (range 16) 9508 | -7/Storage | Identified exit to Factory 9757 | -7/Storage | Assisted by bots powering up and referring to "LRC-V3" 10053 | -7/Storage | Build established: Commander-Skirmisher 10387 | -7/Storage | Build established: Scavenger-Skirmisher 10569 | -7/Storage | Entered Factory 10569 | -6/Factory | Accompanied by 5 allies 10569 | -6/Factory | Evolved 2 slots: Utility x2 10745 | -6/Factory | Discovered new exit (range 9) 10756 | -6/Factory | Identified exit to Lower Caves 10764 | -6/Factory | Entered Lower Caves 10764 | -6/Lower Caves | Accompanied by 4 allies 10870 | -6/Lower Caves | Build established: Scavenger-Tank 10895 | -6/Lower Caves | Entered an active Warlord outpost 10915 | -6/Lower Caves | Learned Armory terminal intel 11333 | -6/Lower Caves | Discovered new exit (range 6) 11338 | -6/Lower Caves | Identified exit to Lower Caves 11488 | -6/Lower Caves | Entered another Lower Caves area 11488 | -6/Lower Caves | Discovered new exit (range 13) 11502 | -6/Lower Caves | Identified exit to Factory 11579 | -6/Lower Caves | Attacked by a faux Warlord 11838 | -6/Lower Caves | Ambushed by wild Derelicts 11997 | -6/Lower Caves | Attacked by a delusional Derelict stockpiling Unaware 12093 | -6/Lower Caves | Discovered new exit (range 15) 12120 | -6/Lower Caves | Identified exit to Data Miner 12128 | -6/Lower Caves | Entered Data Miner 12128 | -6/Data Miner | Accompanied by 5 allies 12128 | -6/Data Miner | Discovered new exit (range 6) 12152 | -6/Data Miner | Met Data Miner 12174 | -6/Data Miner | Learned location of Section 7 (-2) 12174 | -6/Data Miner | Acquired the access code to Warlord's prototype stash 12195 | -6/Data Miner | Received God Mode back door access code from Data Miner 12222 | -6/Data Miner | Identified exit to Proximity Caves 12232 | -6/Data Miner | Entered Proximity Caves 12232 | -5/Proximity Caves | Accompanied by 5 allies 12269 | -5/Proximity Caves | Attracted the attention of an 0b10 checkpoint 12272 | -5/Proximity Caves | Unaware initiated a cargo recovery operation 12517 | -5/Proximity Caves | Lost 4 parts (1p2n1w) 12626 | -5/Proximity Caves | Attracted the attention of an 0b10 outpost 12776 | -5/Proximity Caves | Lost 12 parts (1p4n3u4w) 12842 | -5/Proximity Caves | System corruption reached 10% 13107 | -5/Proximity Caves | Spotted B-75 Beast 13152 | -5/Proximity Caves | Allies destroyed B-75 Beast 13183 | -5/Proximity Caves | Discovered exit to Factory (range 13) 14095 | -5/Proximity Caves | Found Alien Artifact 14099 | -5/Proximity Caves | Identified Dimensional Node Initializer 14099 | -5/Proximity Caves | Initialized slip node 14392 | -5/Proximity Caves | Learned location of Warlord (-4) 14528 | -5/Proximity Caves | Learned Factory emergency access door positions 14963 | -5/Proximity Caves | System corruption reached 30% 14964 | -5/Proximity Caves | Entered Factory 14964 | -5/Factory | Accompanied by 1 ally 14964 | -5/Factory | Evolved 2 slots: Utility x1, Weapon x1 15264 | -5/Factory | Build established: Scavenger-Skirmisher 15926 | -5/Factory | Garrison activated, responded to threat 16281 | -5/Factory | Spotted B-75 Beast 16393 | -5/Factory | Destroyed B-75 Beast 16413 | -5/Factory | Lost 6 parts (1p2n1u2w) 16675 | -5/Factory | Build established: Skirmisher 17490 | -5/Factory | Cargo convoy interrupted 17634 | -5/Factory | Build established: Scavenger-Skirmisher 17909 | -5/Factory | Sucked down chute 17909 | -5/Factory | Entered Waste 17912 | -5/Waste | Spotted C-40 Crusher 17913 | -5/Waste | Spotted C-40 Crusher 17920 | -5/Waste | Lost 7 parts (1p3n1u2w) 17923 | -5/Waste | Spotted C-40 Crusher 17924 | -5/Waste | EMP discharged 17939 | -5/Waste | Spotted C-40 Crusher 17940 | -5/Waste | Spotted C-40 Crusher 17940 | -5/Waste | Spotted C-40 Crusher 17944 | -5/Waste | Crushed by Compactor (1 part destroyed, 1 dropped) 17945 | -5/Waste | Discovered new exit (range 10) 17950 | -5/Waste | Entered Factory 18191 | -5/Factory | Build established: Mutant 18449 | -5/Factory | System corruption reached 10% 18477 | -5/Factory | Core integrity fell below 50% 18717 | -5/Factory | Incoming investigation squad redirected 18780 | -5/Factory | Fabricated Combat Drone Bay (x1) 18832 | -5/Factory | Lost 3 allies 19112 | -5/Factory | Build established: Scavenger-Skirmisher 19147 | -5/Factory | Discovered new exit (range 22) 19172 | -5/Factory | Entered another Factory area 19172 | -4/Factory | Evolved 2 slots: Utility x2 19198 | -4/Factory | Lost 3 parts (2n1w) 19285 | -4/Factory | Identified exit to Upper Caves 19285 | -4/Factory | Identified exit to Extension 19285 | -4/Factory | Identified exit to Armory 19413 | -4/Factory | Lost 3 parts (2n1u) 19545 | -4/Factory | Lost 12 parts (2p7u3w) 19632 | -4/Factory | Core integrity fell below 50% 19759 | -4/Factory | Entered Upper Caves 19887 | -4/Upper Caves | System corruption reached 10% 19921 | -4/Upper Caves | Learned location of Armory (-4) 20067 | -4/Upper Caves | Destroyed 7 combat bots 20071 | -4/Upper Caves | Lost 4 parts (1p1n2w) 20084 | -4/Upper Caves | Core integrity fell below 20% 20099 | -4/Upper Caves | Destroyed by S-27 Virus with Autogun Last Messages --------------- 20035_ S-27 Virus destroyed. 20038_ XYFO&AAGCGZISA3WWX